Cogmind - Beta 14 *** ADVENTURER MODE // 2024.10.20 @ 11:18:47 Player: LegoMDS Result: Destroyed by S-43 Plague with Heavy Machine Gun Performance ------------- Evolutions (7) 3500 Regions Visited (14) 2800 Robots Destroyed (70) 350 Value Destroyed (2940) 2940 Prototype IDs (25) 500 Alien Tech Used (0) 0 Bonus (1211) 1211 TOTAL SCORE: 11301 Bonus ------- High Alert Combat Kills 36 Follower Combat Kills 520 Entered DSFs 500 Registered with UFD 300 Friendly Fire -145 Cogmind --------- Core Integrity 0/1300 Matter 113/300 Energy 171/200 System Corruption 3% Temperature Cool (12) Movement Flying (111) Ox1 Location -3/Testing Parts ------- > --- POWER (2) -------- Micro Antimatter Reactor Micro Antimatter Reactor > --- PROPULSION (6) --- Xenon Bombardment Thruster Xenon Bombardment Thruster Xenon Bombardment Thruster Q-thruster > --- UTILITY (8) ------ Advanced Salvage Targeting Computer Improved Reaction Control System Advanced Hardlight Generator Hacking Suite > --- WEAPON (5) ------- Heavy Machine Gun > --- INVENTORY (5) ---- Improved Force Booster Hypervelocity EM Gauss Rifle Hypervelocity Railgun Improved Datajack Improved Plasma Cutter Peak State ------------ > --- POWER ------------ Light Antimatter Reactor Light Antimatter Reactor > --- PROPULSION ------- Flexi-carbon Leg Flexi-carbon Leg Nuclear Pulse Array > --- UTILITY ---------- Experimental Power Amplifier Advanced Cryofiber Web Advanced Heat Sink Advanced Weight Redist. System Advanced Weight Redist. System ECM Suite Cloaking Device System Shield > --- WEAPON ----------- Phase Gun Autogun Magnetic Acceleration Cannon Force Lance > --- INVENTORY -------- Improved Force Booster Improved Transmission Jammer Improved Datajack Improved Plasma Cutter [Rating: 95] Favorites ----------- Power F-cell Engine Engine F-cell Engine Power Core Light Fission Core Reactor Light Antimatter Reactor Propulsion Improved Flight Unit Leg Flexi-carbon Leg Wheel Centrium Wheel Flight Unit Improved Flight Unit Utility Weight Redist. System Device Weight Redist. System Storage Small Storage Unit Processor Improved Signal Interpreter Hackware System Shield Protection Light Armor Plating Weapon Spread Laser Energy Gun Spread Laser Ballistic Gun Improved Assault Rifle Ballistic Cannon Magnetic Acceleration Cannon Launcher Mini Grenade Launcher Special Weapon Plasma Cutter Slashing Weapon Katana Piercing Weapon Force Lance Special Melee Weapon Improved Datajack Build | -11 -10 -9 -9 -9 -9 -6 -6 -6 -6 -5 -5 -4 -3 -3 ------- Run | Yrd Mat Mat Sto Rec Scr Fac Was Fac Ext Fac DSF Fac Res Tes Slots Evolved 14 | . . 2 . . . 6 . . . 2 . 2 2 . Power 1 | . . . . . . 1 . . . . . . . . Propulsion 4 | . . 1 . . . 1 . . . . . 1 1 . Utility 6 | . . 1 . . . 2 . . . 2 . 1 . . Weapon 3 | . . . . . . 2 . . . . . . 1 . Parts Attached 176 | 6 2 . 42 . 3 10 6 12 18 1 19 25 23 9 Power 24 | 1 . . 6 . 1 1 2 3 1 . 1 2 4 2 Engine 12 | 1 . . 4 . 1 1 . 2 1 . 1 . 1 . Core 4 | . . . 2 . . . 1 1 . . . . . . Reactor 8 | . . . . . . . 1 . . . . 2 3 2 Propulsion 52 | 2 1 . 12 . 1 2 . 3 5 . 9 7 10 . Treads . | . . . . . . . . . . . . . . . Leg 18 | 2 1 . 2 . . . . 3 5 . 3 2 . . Wheel 1 | . . . . . . . . . . . . 1 . . Hover . | . . . . . . . . . . . . . . . Flight 33 | . . . 10 . 1 2 . . . . 6 4 10 . Utility 47 | 1 1 . 6 . 1 4 2 3 5 1 5 10 7 1 Device 32 | . 1 . 4 . . 2 1 3 3 1 3 9 5 . Storage 1 | 1 . . . . . . . . . . . . . . Processor 6 | . . . 1 . 1 1 . . . . 1 1 1 . Hackware 3 | . . . . . . 1 . . 1 . . . . 1 Protection 5 | . . . 1 . . . 1 . 1 . 1 . 1 . Artifact . | . . . . . . . . . . . . . . . Weapon 53 | 2 . . 18 . . 3 2 3 7 . 4 6 2 6 Energy Gun 21 | 1 . . 11 . . . 1 1 2 . 2 1 . 2 Energy Cannon . | . . . . . . . . . . . . . . . Ballistic Gun 16 | 1 . . 5 . . 1 . 2 1 . . 2 2 2 Ballistic Cannon 2 | . . . . . . . . . 1 . . 1 . . Launcher 2 | . . . 1 . . . 1 . . . . . . . Special Weapon 2 | . . . . . . . . . . . 1 . . 1 Impact Weapon . | . . . . . . . . . . . . . . . Slashing Weapon 3 | . . . 1 . . 1 . . 1 . . . . . Piercing Weapon 1 | . . . . . . . . . . . . 1 . . Special Melee Weapon 6 | . . . . . . 1 . . 2 . 1 1 . 1 Unidentified Prototypes 12 | . . . 5 . . 1 1 1 . . 1 1 . 2 Parts Lost 67 | . . . 6 . . 2 3 2 9 . 10 15 17 3 Power 9 | . . . 3 . . . 1 . 1 . . 1 3 . Propulsion 22 | . . . 3 . . 1 1 1 2 . 4 5 3 2 Utility 22 | . . . . . . 1 1 . 3 . 3 5 8 1 Weapon 14 | . . . . . . . . 1 3 . 3 4 3 . Highest Loss Streak 10 | . . . 2 . . 1 3 1 7 . 7 5 10 3 To Critical Strikes 1 | . . . . . . . . 1 . . . . . . Average Slot Usage (%) 78 | . 95 77 84 100 100 87 70 65 92 88 72 68 44 61 Engine 5 | . 14 11 5 11 11 6 . 3 7 11 9 . . . Core 1 | . . . 3 . . . 3 . 4 . . . . . Reactor 1 | . . . . . . . . . . . . 4 2 9 Leg 6 | . 28 22 2 . . . . 4 23 23 11 3 5 . Flight 16 | . . . 24 33 33 25 16 11 2 . 8 10 3 28 Device 20 | . 9 11 21 22 22 16 20 22 21 23 11 23 21 13 Processor 4 | . . . . 11 11 7 8 6 6 5 5 5 1 4 Hackware 1 | . . . . . . 4 . . 1 5 5 5 2 . Protection 1 | . . . 3 . . . . . 1 . . . . . Energy Gun 8 | . 14 11 12 11 11 5 1 1 12 11 8 4 2 2 Ballistic Gun 6 | . 14 11 9 11 11 12 7 2 4 . . 3 2 . Slashing Weapon 1 | . . . . . . 6 6 5 1 . . . . . Peak Build Rating 95 | 6 7 7 22 22 27 48 50 68 79 69 77 95 82 85 Average Rating 40 | 4 6 7 14 22 26 43 33 37 67 69 62 76 46 75 On Entrance 38 | . 6 7 7 22 22 27 45 25 65 66 69 73 64 73 Naked Turns 24 | . . . . . . . . . . . . . 24 . Heaviest Build 57 | 13 14 14 16 14 16 27 22 38 46 45 45 57 38 39 Greatest Support 87 | 20 20 20 30 21 22 26 22 62 87 71 71 49 40 38 Greatest Overweight (x) 5 | . . . 1 . . 1 . 1 . . 5 1 2 1 Average Overweight (x) . | . . . . . . . . . . . . . . . Largest Inventory Capacity 8 | 8 8 8 8 5 5 5 5 5 5 5 5 5 5 5 Average Capacity 5 | 7 8 8 5 5 5 5 5 5 5 5 5 5 5 5 Most Carried 8 | 5 7 7 8 5 5 5 5 5 5 2 5 5 5 5 Average Carried 4 | 2 4 7 5 5 5 4 4 4 4 2 3 4 4 4 Final Capacity 8 | 8 8 8 5 5 5 5 5 5 5 5 5 5 5 5 Final Carried 7 | 2 7 7 5 5 5 5 5 5 3 2 5 5 4 5 Class Distribution -------------------- 42% | Mutant 30% | Scavenger-Mutant 10% | Scavenger-Gunner 4% | Scavenger-Tank 4% | Hacker-Sprinter Dominant Class ---------------- Mutant | -10/Materials Mutant | -9/Materials Mutant | -9/Storage Mutant | -9/Recycling Mutant | -9/Scraptown Hacker-Sprinter | -6/Factory Mutant | -6/Waste Mutant | -6/Factory Scavenger-Gunner | -6/Extension Scavenger-Gunner | -5/Factory Scavenger-Gunner | -5/DSF Scavenger-Mutant | -4/Factory Scavenger-Mutant | -3/Research Scavenger-Mutant | -3/Testing Resources | -11 -10 -9 -9 -9 -9 -6 -6 -6 -6 -5 -5 -4 -3 -3 ----------- Run | Yrd Mat Mat Sto Rec Scr Fac Was Fac Ext Fac DSF Fac Res Tes Matter Collected 2512 | 177 48 . 691 . 61 152 . 153 502 . 169 458 101 . Remotely . | . . . . . . . . . . . . . . . Salvage Created 3184 | . 79 . 1007 . . 221 276 136 508 . 252 523 182 . Parts 165 | . 5 . 59 . . 14 3 11 26 . 10 24 13 . Haulers Intercepted 4 | . . . 3 . . 1 . . . . . . . . Recyclers Shooed 1 | . . . 1 . . . . . . . . . . . Parts Field Recycled . | . . . . . . . . . . . . . . . Retrieved Matter . | . . . . . . . . . . . . . . . Parts Self-Destructed . | . . . . . . . . . . . . . . . Prevented . | . . . . . . . . . . . . . . . Kills | -11 -10 -9 -9 -9 -9 -6 -6 -6 -6 -5 -5 -4 -3 -3 ------- Run | Yrd Mat Mat Sto Rec Scr Fac Was Fac Ext Fac DSF Fac Res Tes Combat Hostiles Destroyed 57 | . 2 . 25 . . 1 1 2 8 . 4 10 4 . Melee 3 | . . . . . . . . . . . . 3 . . Guns 40 | . 1 . 21 . . 1 1 2 4 . 1 5 4 . Cannons 6 | . . . . . . . . . 1 . 3 2 . . AOE 6 | . . . 3 . . . . . 3 . . . . . Classes Destroyed 15 | . 1 . 5 . . 3 1 . 3 . 1 . 1 . Worker 1 | . . . . . . . . . 1 . . . . . Builder 1 | . . . . . . 1 . . . . . . . . Hauler 4 | . . . 3 . . 1 . . . . . . . . Operator 3 | . . . 2 . . 1 . . . . . . . . Watcher 3 | . . . . . . 1 . . 1 . . 1 . . Swarmer 15 | . . . 6 . . . . . 3 . . 3 3 . Grunt 17 | . 2 . 10 . . . . . . . . 5 . . Protector 1 | . . . 1 . . . . . . . . . . . Sentry 10 | . . . 8 . . . . . 1 . 1 . . . Specialist 3 | . . . . . . . . . . . 3 . . . Hunter 7 | . . . . . . 1 . 2 2 . . 2 . . Programmer 1 | . . . . . . . . . . . . . 1 . Behemoth 2 | . . . . . . . . . 2 . . . . . Compactor 1 | . . . . . . . 1 . . . . . . . Butcher 1 | . . . . . . . . . 1 . . . . . Best Kill Streak 6 | . 1 . 6 . . 2 1 2 4 . 3 3 4 . Combat Bots Only 6 | . 1 . 6 . . 1 1 2 3 . 3 3 4 . Max Kills in Single Turn 4 | . 1 . 2 . . 1 1 1 4 . 1 1 1 . Gunslinging . | . . . . . . . . . . . . . . . Exploded 3 | . . . 2 . . . . . 3 . . . . . Melee 1 | . . . . . . . . . . . . 1 . . Uniques/NPCs Destroyed . | . . . . . . . . . . . . . . . Combat | -11 -10 -9 -9 -9 -9 -6 -6 -6 -6 -5 -5 -4 -3 -3 -------- Run | Yrd Mat Mat Sto Rec Scr Fac Was Fac Ext Fac DSF Fac Res Tes Hostile Shots Fired 894 | . 12 . 143 . . 25 2 42 166 . 143 148 189 24 Missed 343 | . 3 . 53 . . 9 1 9 70 . 46 58 84 10 Damage Taken 8242 | . 112 . 971 . . 215 40 446 1374 . 1078 1688 2101 217 Core 2451 | . 12 . 187 . . 24 . 129 120 . 207 461 1241 70 Absorbed by Shields 32 | . . . . . . . . . . . . . 8 24 Redirected to Shielding 150 | . . . . . . . . . . . 76 74 . . Ignored by Resistances 2314 | . 32 . 288 . . 59 10 129 397 . 312 462 558 67 Regen/Repaired (Parts) 57 | . . . . . . 15 . 14 . . . 28 . . Core Remaining (%) 75 | 100 95 . . . 53 . . . 67 . 79 59 . . Volleys Fired 285 | . 18 . 137 . . 12 7 10 34 . 14 37 10 6 Largest 4 | . 2 . 2 . . 3 3 1 4 . 3 3 1 1 Hottest 211 | . 70 . 106 . . 116 81 80 211 . 208 191 30 40 Shots Fired 522 | . 35 . 222 . . 33 19 10 100 . 29 59 9 6 Gun 469 | . 35 . 220 . . 33 14 10 84 . 15 43 9 6 Cannon 46 | . . . . . . . . . 16 . 14 16 . . Launcher 7 | . . . 2 . . . 5 . . . . . . . Special . | . . . . . . . . . . . . . . . Kinetic 263 | . 18 . 96 . . 24 14 . 45 . 14 40 9 3 Thermal 220 | . 17 . 95 . . 9 . 10 55 . 15 19 . . Explosive 7 | . . . 2 . . . 5 . . . . . . . Electromagnetic 32 | . . . 29 . . . . . . . . . . 3 Robot Hit Streak 23 | . 12 . 23 . . 21 7 10 22 . 14 15 9 10 Robot Miss Streak 4 | . 2 . 4 . . 2 1 2 3 . 1 4 . 2 Penetration Max 1 | . . . . . . . 1 . 1 . . . . . Secondary Targets 1 | . . . . . . . . . . . . 1 . . Max Gunslinging Chain 1 | . . . . . . . . . . . . 1 . . Shots Hit Robots 404 | . 26 . 147 . . 30 17 7 85 . 23 57 9 3 Core Hits 184 | . 6 . 69 . . 22 5 4 25 . 9 36 8 . Critical Kills 2 | . . . . . . . . 1 1 . . . . . Critical Parts Destroyed 4 | . . . . . . . . . 4 . . . . . Critical Strikes 17 | . 1 . 5 . . . . 1 8 . 1 1 . . Burn 9 | . 1 . 5 . . . . . 2 . 1 . . . Destroy 6 | . . . . . . . . 1 5 . . . . . Blast 2 | . . . . . . . . . 1 . . 1 . . Melee Attacks 20 | . . . 2 . . 1 . . 2 . . 14 . 1 Impact . | . . . . . . . . . . . . . . . Slashing 3 | . . . 2 . . 1 . . . . . . . . Piercing 14 | . . . . . . . . . . . . 14 . . Sneak Attacks 3 | . . . . . . . . . 2 . . . . 1 Combat Hostiles . | . . . . . . . . . . . . . . . Follow-up Attacks . | . . . . . . . . . . . . . . . Damage Inflicted 8939 | . 277 . 2330 . . 555 836 170 2375 . 633 1446 292 25 Guns 5909 | . 277 . 1929 . . 418 278 170 1666 . 287 628 231 25 Cannons 1066 | . . . . . . . . . 370 . 346 350 . . Explosions 1398 | . . . 401 . . 100 558 . 339 . . . . . Melee 505 | . . . . . . 37 . . . . . 468 . . Ramming 61 | . . . . . . . . . . . . . 61 . Kinetic 3535 | . 102 . 756 . . 268 278 . 926 . 346 605 231 23 Thermal 3877 | . 175 . 1173 . . 250 . 170 1449 . 287 373 . . Explosive 959 | . . . 401 . . . 558 . . . . . . . Electromagnetic 2 | . . . . . . . . . . . . . . 2 Impact . | . . . . . . . . . . . . . . . Slashing 37 | . . . . . . 37 . . . . . . . . Piercing 468 | . . . . . . . . . . . . 468 . . Highest Corruption 8 | . . . 2 2 . . 8 8 8 . . . 3 3 Average Corruption 5 | . . . 1 2 . . 8 8 8 . . . 2 3 Corruption Purged . | . . . . . . . . . . . . . . . Corruption Blocked . | . . . . . . . . . . . . . . . Effects 46 | . . . 7 1 . . 2 14 19 . . . 2 1 Message Errors 9 | . . . . . . . . 6 3 . . . . . Matter Fused 7 | . . . 3 1 . . . 2 1 . . . . . Heat Flow Errors 4 | . . . . . . . . 1 2 . . . . 1 Energy Discharges 8 | . . . 2 . . . 1 2 3 . . . . . Parts Rejected 1 | . . . . . . . 1 . . . . . . . Parts Fused 1 | . . . . . . . . 1 . . . . . . Data Loss (minor) 8 | . . . 1 . . . . . 6 . . . 1 . Data Loss (major) 4 | . . . . . . . . 2 2 . . . . . Misfires 1 | . . . . . . . . . 1 . . . . . Weapon Failures 3 | . . . 1 . . . . . 1 . . . 1 . Overload Shots . | . . . . . . . . . . . . . . . Overflow Damage 52 | . . . . . . 2 . . 27 . . 23 . . Projectiles . | . . . . . . . . . . . . . . . Explosions 27 | . . . . . . . . . 27 . . . . . Melee 25 | . . . . . . 2 . . . . . 23 . . Knockbacks 5 | . . . . . . . . . . . 2 3 . . Impact . | . . . . . . . . . . . . . . . Kinetic 5 | . . . . . . . . . . . 2 3 . . Secondary . | . . . . . . . . . . . . . . . Self-Inflicted Damage 102 | . . . . . . . . . 75 . . . 27 . Shots 2 | . . . . . . . . . 2 . . . . . Rammed 16 | . . . . . . . . . . . . . 16 . Targets Rammed 16 | . . . . . . . . . . . . . 16 . Kicked . | . . . . . . . . . . . . . . . Crushed . | . . . . . . . . . . . . . . . Highest Temperature 261 | . 261 . 92 . . 13 . 140 105 . 48 . 8 136 Average Temperature 46 | . 101 . 29 . . 10 . 60 43 . 29 . 5 34 Received Heat Transfer 1849 | . 81 . 504 . . . 9 . 309 . 679 180 87 . Effects 1 | . 1 . . . . . . . . . . . . . Energy Bleed 1 | . 1 . . . . . . . . . . . . . Siege Activations . | . . . . . . . . . . . . . . . Robots Corrupted . | . . . . . . . . . . . . . . . Combat Hostiles . | . . . . . . . . . . . . . . . Parts Fried . | . . . . . . . . . . . . . . . Impact Corruptions . | . . . . . . . . . . . . . . . Robots Melted 2 | . 1 . 1 . . . . . . . . . . . Combat Hostiles 2 | . 1 . 1 . . . . . . . . . . . Parts Melted 15 | . . . 7 . . 2 . . 3 . . 3 . . Heat Transferred 7765 | . 592 . 3056 . . 245 . 259 2260 . 555 798 . . Parts Sabotaged . | . . . . . . . . . . . . . . . Parts Stolen . | . . . . . . . . . . . . . . . Parts Stripped . | . . . . . . . . . . . . . . . Power Chain Reactions . | . . . . . . . . . . . . . . . Alert | -11 -10 -9 -9 -9 -9 -6 -6 -6 -6 -5 -5 -4 -3 -3 ------- Run | Yrd Mat Mat Sto Rec Scr Fac Was Fac Ext Fac DSF Fac Res Tes Peak Influence 549 | . 65 38 549 172 . 158 30 59 294 48 75 298 165 45 Initial 154 | . . 23 13 154 . . . . . 44 29 29 86 36 Average 118 | . 24 23 194 164 . 93 7 8 138 45 31 160 67 40 Maximum Alert Level 2 | . . . 2 . . . . . 1 . . 1 . . Low Security (%) 84 | 100 100 100 65 100 . 100 100 100 77 100 100 77 100 100 Level 1 12 | . . . 23 . . . . . 22 . . 22 . . Level 2 3 | . . . 10 . . . . . . . . . . . Level 3 . | . . . . . . . . . . . . . . . Level 4 . | . . . . . . . . . . . . . . . Level 5 . | . . . . . . . . . . . . . . . High Security . | . . . . . . . . . . . . . . . Max Security . | . . . . . . . . . . . . . . . Squads Dispatched 12 | . . . 5 . . 1 . 1 2 . 1 2 . . Investigation 2 | . . . . . . . . 1 1 . . . . . Extermination 2 | . . . . . . 1 . . . . . 1 . . Reinforcement 5 | . . . 2 . . . . . 1 . 1 1 . . Assault 2 | . . . 2 . . . . . . . . . . . Garrison 1 | . . . 1 . . . . . . . . . . . Intercept . | . . . . . . . . . . . . . . . Searches Triggered . | . . . . . . . . . . . . . . . Construction Impeded 1 | . . . . . . . . . 1 . . . . . Haulers Reinforced 1 | . . . . . . . . . . . . 1 . . Active Scanning Responses . | . . . . . . . . . . . . . . . Cargo Convoy Interrupts . | . . . . . . . . . . . . . . . Stealth | -11 -10 -9 -9 -9 -9 -6 -6 -6 -6 -5 -5 -4 -3 -3 --------- Run | Yrd Mat Mat Sto Rec Scr Fac Was Fac Ext Fac DSF Fac Res Tes Distress Signals 12 | . . . 2 . . 1 . . 6 . . 3 . . Communications Jammed . | . . . . . . . . . . . . . . . Distress Signals . | . . . . . . . . . . . . . . . Times Spotted 150 | . 4 1 43 . . 7 6 2 21 . 10 31 20 5 Peak Tracking Total 11 | . 2 . 11 . . 4 5 2 4 . 6 7 8 5 Tactical Retreats 18 | . . . 3 . . . . . 3 . 1 6 5 . Traps | -11 -10 -9 -9 -9 -9 -6 -6 -6 -6 -5 -5 -4 -3 -3 ------- Run | Yrd Mat Mat Sto Rec Scr Fac Was Fac Ext Fac DSF Fac Res Tes Traps Triggered 7 | . . . 5 . . 1 . . . . . . 1 . Indirectly . | . . . . . . . . . . . . . . . Trap Hack Attempts . | . . . . . . . . . . . . . . . Triggered . | . . . . . . . . . . . . . . . Disarmed . | . . . . . . . . . . . . . . . Reprogrammed . | . . . . . . . . . . . . . . . Reused . | . . . . . . . . . . . . . . . Traps Extracted . | . . . . . . . . . . . . . . . Installed . | . . . . . . . . . . . . . . . Triggered . | . . . . . . . . . . . . . . . Machines | -11 -10 -9 -9 -9 -9 -6 -6 -6 -6 -5 -5 -4 -3 -3 ---------- Run | Yrd Mat Mat Sto Rec Scr Fac Was Fac Ext Fac DSF Fac Res Tes Machines Disabled 11 | . . . 3 . . 4 . . 3 . . . . 1 Max in Single Turn 4 | . . . 1 . . 4 . . 3 . . . . 1 Garrison Access 3 | . . . 1 . . 1 . 1 . . . . . . Energy Cycler 2 | . . . . . . . . . 2 . . . . . Machines Repaired . | . . . . . . . . . . . . . . . Machines Dismantled 1 | . . . . . . . . . . . . . . 1 Machines Sabotaged . | . . . . . . . . . . . . . . . Overloaded Fab Kills . | . . . . . . . . . . . . . . . Hacking | -11 -10 -9 -9 -9 -9 -6 -6 -6 -6 -5 -5 -4 -3 -3 --------- Run | Yrd Mat Mat Sto Rec Scr Fac Was Fac Ext Fac DSF Fac Res Tes Machines Accessed 36 | . 1 . 8 5 2 6 . 3 7 1 . 3 . . Terminals 23 | . 1 . 5 5 . 2 . 1 7 1 . 1 . . Fabricators 1 | . . . . . . 1 . . . . . . . . Repair Stations 3 | . . . . . . 1 . 1 . . . 1 . . Recycling Units 4 | . . . 2 . . 1 . . . . . 1 . . Scanalyzers . | . . . . . . . . . . . . . . . Garrison Access 3 | . . . 1 . . 1 . 1 . . . . . . Total Hacks 75 | . 2 . 15 13 6 10 . 7 13 2 . 7 . . Successful 47 | . 1 . 11 8 6 6 . 3 6 1 . 5 . . Failed 28 | . 1 . 4 5 . 4 . 4 7 1 . 2 . . Catastrophic 5 | . . . 1 . . . . 2 2 . . . . . Database Lockouts . | . . . . . . . . . . . . . . . Manual 1 | . . . 1 . . . . . . . . . . . Terminals 46 | . 2 . 8 13 . 4 . 2 13 2 . 2 . . Fabricators 1 | . . . . . . 1 . . . . . . . . Repair Stations 7 | . . . . . . 2 . 2 . . . 3 . . Recycling Units 8 | . . . 5 . . 1 . . . . . 2 . . Scanalyzers . | . . . . . . . . . . . . . . . Garrison Access 7 | . . . 2 . . 2 . 3 . . . . . . Terminal Hacks 30 | . 1 . 5 8 6 2 . . 6 1 . 1 . . Record 1 | . . . . . . . . . 1 . . . . . Part Schematic 5 | . . . . 3 . 1 . . . . . 1 . . Robot Analysis 5 | . . . . . 5 . . . . . . . . . Prototype ID Bank 4 | . . . 1 2 . 1 . . . . . . . . Open Door 5 | . . . 1 . . . . . 4 . . . . . Open DSF 1 | . . . . . . . . . . 1 . . . . Branch Access Points 1 | . . . . 1 . . . . . . . . . . Transport Status 1 | . 1 . . . . . . . . . . . . . Recall Investigation 1 | . . . . . . . . . 1 . . . . . Hauler Manifests 2 | . . . 1 1 . . . . . . . . . . Registered Components 1 | . . . 1 . . . . . . . . . . . Zone Layout 2 | . . . 1 1 . . . . . . . . . . Derelict Proto ID Bank 1 | . . . . . 1 . . . . . . . . . Fabricator Hacks . | . . . . . . . . . . . . . . . Repair Station Hacks 6 | . . . . . . 2 . 2 . . . 2 . . Scan Component 3 | . . . . . . 1 . 1 . . . 1 . . Repair 3 | . . . . . . 1 . 1 . . . 1 . . Recycling Unit Hacks 8 | . . . 5 . . 1 . . . . . 2 . . Report Inventory 6 | . . . 4 . . 1 . . . . . 1 . . Retrieve Components 2 | . . . 1 . . . . . . . . 1 . . Scanalyzer . | . . . . . . . . . . . . . . . Garrison Access Hacks 3 | . . . 1 . . 1 . 1 . . . . . . Seal Access 3 | . . . 1 . . 1 . 1 . . . . . . Unauthorized Hacks . | . . . . . . . . . . . . . . . Terminals . | . . . . . . . . . . . . . . . Fabricators . | . . . . . . . . . . . . . . . Repair Stations . | . . . . . . . . . . . . . . . Recycling Units . | . . . . . . . . . . . . . . . Scanalyzers . | . . . . . . . . . . . . . . . Garrison Access . | . . . . . . . . . . . . . . . Data Cores Recovered 1 | . . . . . . 1 . . . . . . . . Used . | . . . . . . . . . . . . . . . Hacking Detections 18 | . . . 4 3 . 5 . 1 3 1 . 1 . . Full Trace Events 3 | . . . 1 . . . . 1 1 . . . . . Feedback Events . | . . . . . . . . . . . . . . . Feedback Blocked . | . . . . . . . . . . . . . . . Robot Schematics Acquired . | . . . . . . . . . . . . . . . Robots Built . | . . . . . . . . . . . . . . . Authchips . | . . . . . . . . . . . . . . . Time . | . . . . . . . . . . . . . . . Total Robot Build Rating . | . . . . . . . . . . . . . . . Part Schematics Acquired 5 | . . . . 3 . 1 . . . . . 1 . . Parts Built . | . . . . . . . . . . . . . . . Authchips . | . . . . . . . . . . . . . . . Time . | . . . . . . . . . . . . . . . Total Part Build Rating . | . . . . . . . . . . . . . . . Parts Repaired 3 | . . . . . . 1 . 1 . . . 1 . . Time 149 | . . . . . . 44 . 86 . . . 19 . . Parts Recycled . | . . . . . . . . . . . . . . . Recycled Matter . | . . . . . . . . . . . . . . . Retrieved Matter . | . . . . . . . . . . . . . . . Retrieved Components 9 | . . . 7 . . . . . . . . 2 . . Parts Scanalyzed . | . . . . . . . . . . . . . . . Part Schematics Acquired . | . . . . . . . . . . . . . . . Parts Damaged . | . . . . . . . . . . . . . . . Bothacking | -11 -10 -9 -9 -9 -9 -6 -6 -6 -6 -5 -5 -4 -3 -3 ------------ Run | Yrd Mat Mat Sto Rec Scr Fac Was Fac Ext Fac DSF Fac Res Tes Used RIF Installer . | . . . . . . . . . . . . . . . Robots Hacked 3 | . . . . . . . . . 2 . . . . 1 Non-combat . | . . . . . . . . . . . . . . . Combat 3 | . . . . . . . . . 2 . . . . 1 Robot Hacks Applied 3 | . . . . . . . . . 2 . . . . 1 parse_system 3 | . . . . . . . . . 2 . . . . 1 Relay Couplers Released . | . . . . . . . . . . . . . . . Fabnet Peak Effective % . | . . . . . . . . . . . . . . . Robots Rewired 7 | . . . . . . . . . 7 . . . . . Allies Hacked . | . . . . . . . . . . . . . . . Hacks Repelled . | . . . . . . . . . . . . . . . Allies | -11 -10 -9 -9 -9 -9 -6 -6 -6 -6 -5 -5 -4 -3 -3 -------- Run | Yrd Mat Mat Sto Rec Scr Fac Was Fac Ext Fac DSF Fac Res Tes Total Allies 13 | . . . 2 . . . 1 . 10 . . . . . Largest Group 6 | . . . 2 . . . 1 . 6 1 1 . . . Highest-Rated Group 177 | . . . 62 . . . 31 . 177 39 39 . . . Highest-Rated Ally 39 | . . . 31 . . . 31 . 39 39 39 . . . Total Orders . | . . . . . . . . . . . . . . . Ally Attacks 123 | . . . 40 . . . 15 . 67 . 1 . . . Total Damage 2004 | . . . 645 . . . 229 . 1100 . 30 . . . Kills 20 | . . . 11 . . . . . 9 . . . . . Allies Corrupted . | . . . . . . . . . . . . . . . Allies Melted . | . . . . . . . . . . . . . . . Intel | -11 -10 -9 -9 -9 -9 -6 -6 -6 -6 -5 -5 -4 -3 -3 ------- Run | Yrd Mat Mat Sto Rec Scr Fac Was Fac Ext Fac DSF Fac Res Tes Robot Analysis Total 5 | . . . . . 5 . . . . . . . . . Derelict Logs Recovered . | . . . . . . . . . . . . . . . Drone Launches . | . . . . . . . . . . . . . . . Drone Recoveries . | . . . . . . . . . . . . . . . Exploration | -11 -10 -9 -9 -9 -9 -6 -6 -6 -6 -5 -5 -4 -3 -3 ------------- Run | Yrd Mat Mat Sto Rec Scr Fac Was Fac Ext Fac DSF Fac Res Tes Turns Passed 5117 | 53 187 22 1345 66 436 403 94 452 564 15 160 720 498 102 Spaces Moved 5182 | 34 108 19 826 163 1263 580 135 284 313 6 96 828 440 87 Core 189 | 13 . . . . . . . . . . . . 176 . Treads . | . . . . . . . . . . . . . . . Legs 1043 | 21 108 19 56 . . . . 143 313 6 41 191 145 . Wheels . | . . . . . . . . . . . . . . . Hover . | . . . . . . . . . . . . . . . Flight 3950 | . . . 770 163 1263 580 135 141 . . 55 637 119 87 Fastest Speed 25 | 50 120 120 34 34 34 29 34 37 120 120 37 34 25 25 Average Speed 59 | 93 120 120 63 34 34 47 35 93 120 120 82 57 67 53 Slowest Speed 465 | 120 120 120 120 34 34 107 37 190 120 120 465 190 150 105 Overloaded Moves . | . . . . . . . . . . . . . . . Propulsion Burnouts . | . . . . . . . . . . . . . . . Robots Hopped 10 | . . . 2 . . . . . . . 1 5 2 . Cave-ins Triggered . | . . . . . . . . . . . . . . . Exploration Rate (%) 36 | 3 25 3 76 39 89 19 98 7 45 . 62 24 14 13 Regions Visited 14 Branch Regions 5 Pre-discovered Areas . | . . . . . . . . . . . . . . . Known Exits Taken 3 | . . . . . . . . 1 1 1 . . . . Unknown Exits Taken 8 | 1 1 1 1 1 1 . . . . . . 1 1 . Scrap Searched 6 | . . . . . 6 . . . . . . . . . Spaces Dug . | . . . . . . . . . . . . . . . Terrain Destroyed 106 | . . . 21 . . 31 27 . 25 . . 2 . . Melee . | . . . . . . . . . . . . . . . Projectile 5 | . . . . . . 1 . . 2 . . 2 . . AOE 101 | . . . 21 . . 30 27 . 23 . . . . . Terrain Rammed . | . . . . . . . . . . . . . . . Walls Destroyed . | . . . . . . . . . . . . . . . Machines Disabled . | . . . . . . . . . . . . . . . Actions | -11 -10 -9 -9 -9 -9 -6 -6 -6 -6 -5 -5 -4 -3 -3 --------- Run | Yrd Mat Mat Sto Rec Scr Fac Was Fac Ext Fac DSF Fac Res Tes Total 6691 | 54 133 18 1425 172 1268 677 164 456 424 13 149 981 625 132 Wait 827 | 8 . . 363 10 . 66 11 146 11 6 . 62 128 16 Move 5150 | 33 107 18 821 162 1262 580 134 283 312 6 93 817 435 87 Hop 10 | . . . 2 . . . . . . . 1 5 2 . Pick Up 72 | 7 6 . 13 . 1 5 2 2 6 . 13 11 5 1 Fast Attach 73 | 1 . . 11 . 1 5 3 10 5 . 6 14 15 2 Attach 57 | 5 1 . 8 . . 4 1 1 10 1 6 10 7 3 Detach 8 | . . . . . . . . . 2 . . 2 1 3 Swap 46 | . 1 . 23 . 2 1 2 1 3 . 7 1 1 4 Drop 68 | . . . 27 . 2 3 4 3 4 . 9 8 5 3 Fire 285 | . 18 . 137 . . 12 7 10 34 . 14 37 10 6 Melee 20 | . . . 2 . . 1 . . 2 . . 14 . 1 Ram 16 | . . . . . . . . . . . . . 16 . Kick . | . . . . . . . . . . . . . . . Crush . | . . . . . . . . . . . . . . . Escape Stasis 18 | . . . 18 . . . . . . . . . . . Rewire 35 | . . . . . . . . . 35 . . . . . Trap . | . . . . . . . . . . . . . . . Miscellaneous 6 | . . . . . . . . . . . . . . 6 Route ------- -11/Scrapyard -10/Materials -9/Materials -9/Storage -9/Recycling -9/Scraptown (discovered 2 exits: *Fac x2) -6/Factory -6/Waste -6/Factory (discovered 2 exits: *Low / *Ext) -6/Extension -5/Factory -5/DSF -4/Factory -3/Research -3/Testing History --------- Turn | Location | Event 8 | -11/Scrapyard | Discovered new exit (range 16) 54 | -11/Scrapyard | Entered Materials 211 | -10/Materials | Discovered new exit (range 3) 241 | -10/Materials | Entered another Materials area 241 | -9/Materials | Evolved 2 slots: Propulsion x1, Utility x1 241 | -9/Materials | Discovered new exit (range 14) 263 | -9/Materials | Entered Storage 306 | -9/Storage | Garrison activated, responded to threat 309 | -9/Storage | Build established: Mutant 1250 | -9/Storage | Build established: Scavenger-Mutant 1416 | -9/Storage | Met a pair of Derelict thieves 1607 | -9/Storage | Used back door to open Recycling access 1607 | -9/Storage | Discovered new exit (range 4) 1608 | -9/Storage | Entered Recycling 1609 | -9/Recycling | Joined Warlord attack on 0b10 via Recycling 1662 | -9/Recycling | Scanned before Scraplab entrance 1670 | -9/Recycling | Entered Scraplab 1673 | -9/Recycling | Discovered new exit (range 3) 1674 | -9/Recycling | Entered Scraptown 1674 | -9/Scraptown | System corruption cleaned by C-Scrubber 1727 | -9/Scraptown | Visited UFD Registry 1727 | -9/Scraptown | Registered with UFD as "Cogroller" 1734 | -9/Scraptown | 8 allies followed out of Recycling 1738 | -9/Scraptown | Visited Junk Repository 1751 | -9/Scraptown | Visited Junk Repository 1761 | -9/Scraptown | Build established: Mutant 1817 | -9/Scraptown | Discovered new exit (range 11) 1845 | -9/Scraptown | Visited Comm Corps 1859 | -9/Scraptown | Visited Awakened 1868 | -9/Scraptown | Visited Shadow of the Wyrm 1888 | -9/Scraptown | Visited The Evicted 1898 | -9/Scraptown | Visited CPS Storage 1913 | -9/Scraptown | Visited DA-N13 Charitable Foundation 1915 | -9/Scraptown | Found DCF Scrap (31 items) 1930 | -9/Scraptown | Visited Botcube Research 1942 | -9/Scraptown | Visited Scrapoid Pod Storage 1984 | -9/Scraptown | Visited Derelict Rescue Squad 2000 | -9/Scraptown | Visited Analyses Database 2017 | -9/Scraptown | Visited Observation Area 2033 | -9/Scraptown | Visited Chapter 10 2038 | -9/Scraptown | Visited Science Guys 2052 | -9/Scraptown | Visited LU-1G1's Boring Crew 2109 | -9/Scraptown | Discovered new exit (range 3) 2110 | -9/Scraptown | Entered Factory 2110 | -6/Factory | Evolved 6 slots: Power x1, Propulsion x1, Utility x2, Weapon x2 2276 | -6/Factory | Repaired Xenon Bombardment Thruster 2496 | -6/Factory | Spotted B-75 Beast 2513 | -6/Factory | Sucked down chute 2513 | -6/Factory | Entered Waste 2514 | -6/Waste | Met a frightened Derelict 2521 | -6/Waste | Spotted C-40 Crusher 2525 | -6/Waste | Spotted C-40 Crusher 2528 | -6/Waste | EMP discharged 2535 | -6/Waste | Destroyed C-40 Crusher 2557 | -6/Waste | Spotted C-40 Crusher 2562 | -6/Waste | Crushed by Compactor (1 part destroyed, 2 dropped) 2568 | -6/Waste | Spotted C-40 Crusher 2568 | -6/Waste | Spotted C-40 Crusher 2593 | -6/Waste | Lost 3 parts (1p1n1u) 2596 | -6/Waste | Spotted C-40 Crusher 2597 | -6/Waste | Discovered new exit (range 11) 2607 | -6/Waste | Identified exit to Factory 2607 | -6/Waste | Entered Factory 2797 | -6/Factory | Repaired Corrupted Adv. Cryofiber Web 2834 | -6/Factory | Discovered new exit (range 5) 2838 | -6/Factory | Identified exit to Lower Caves 3041 | -6/Factory | Discovered new exit (range 16) 3058 | -6/Factory | Identified exit to Extension 3059 | -6/Factory | Entered Extension 3136 | -6/Extension | Rescued a captive Derelict 3190 | -6/Extension | Rescued a captive Derelict 3207 | -6/Extension | Energy Cycler disabled 3207 | -6/Extension | Rescued a captive Derelict 3209 | -6/Extension | Rescued a captive Derelict 3214 | -6/Extension | Rescued a captive Derelict 3225 | -6/Extension | Rescued a captive Derelict 3226 | -6/Extension | Rescued a captive Derelict 3319 | -6/Extension | Build established: Scavenger-Gunner 3388 | -6/Extension | Spotted B-75 Beast 3427 | -6/Extension | Destroyed B-75 Beast 3434 | -6/Extension | Spotted B-75 Beast 3456 | -6/Extension | Destroyed B-75 Beast 3481 | -6/Extension | Discovered new exit (range 16) 3484 | -6/Extension | Lost 7 parts (1p1n2u3w) 3486 | -6/Extension | Extracted ID and sensor layout for unrecognized location from A7's data core 3528 | -6/Extension | Lost 6 allies 3618 | -6/Extension | Identified exit to Factory 3623 | -6/Extension | Entered Factory 3623 | -5/Factory | Accompanied by 1 ally 3623 | -5/Factory | Evolved 2 slots: Utility x2 3632 | -5/Factory | Identified exit to DSF 3638 | -5/Factory | Entered DSF 3638 | -5/DSF | Accompanied by 1 ally 3678 | -5/DSF | Lost 3 parts (1n2u) 3709 | -5/DSF | Additional patrols routed to DSF 3788 | -5/DSF | Found Launcher Loader 3794 | -5/DSF | Discovered new exit (range 11) 3798 | -5/DSF | Identified exit to Factory 3798 | -5/DSF | Entered Factory 3798 | -4/Factory | Evolved 2 slots: Propulsion x1, Utility x1 3818 | -4/Factory | Lost 7 parts (3n1u3w) 3829 | -4/Factory | Repaired Cryofiber Web 3964 | -4/Factory | Lost 5 parts (1n2u2w) 4221 | -4/Factory | Build established: Scavenger-Mutant 4266 | -4/Factory | Lost 4 parts (2n2u) 4358 | -4/Factory | Lost 3 parts (1p1n1w) 4500 | -4/Factory | Discovered new exit (range 16) 4518 | -4/Factory | Entered Research 4518 | -3/Research | Evolved 2 slots: Propulsion x1, Weapon x1 4895 | -3/Research | Lost 10 parts (1p7u2w) 4903 | -3/Research | Core integrity fell below 50% 4932 | -3/Research | Core integrity fell below 20% 5013 | -3/Research | Discovered new exit (range 5) 5016 | -3/Research | Entered Testing 5024 | -3/Testing | Lost 5 parts (1p3n1w) 5039 | -3/Testing | Found Prototype Energy Gun 5040 | -3/Testing | Identified Hyp. EM Gauss Rifle 5118 | -3/Testing | Destroyed by S-43 Plague with Heavy Machine Gun Last Messages --------------- Reinforced Shell dismantled. System corrupted: Heat flow error (+158). Acquired Prototype Energy Gun. Identified Hyp. EM Gauss Rifle. Dropped Mic. Antimatter Reactor. Dropped Lgt. Antimatter Reactor. Acquired Prototype Energy Gun. Identified Hvy. Tesla Rifle. Faulty integration damages Xenon Bombardment Thruster (-7). Dropped Faulty Hvy. Tesla Rifle. HV-EM Slug penetrates S-43 Plague. HV-EM Slug penetrates Wall. Adv. Heat Sink destroyed. HV-EM Slug penetrates Wall. Connecting with Terminal... Current location identified: Testing Acquired Hacking Suite. HV-EM Slug penetrates Wall. Xenon Bombardment Thruster destroyed. Map ----- +----------------------------------------------------+ | | | | | | | | | | | | | | | | | | | | | | | ?????????????????????????????????????????????????? | | ?????????????????????????????????????????????????? | | ?????????????????????????????????????????????????? | | ?????????????????????????????????????????????????? | | ?????????????????????????????????????????????????? | | ?????????????????????????????????????????????????? | | ?????????????????????????????????????????????????? | | ???????????????????##########????????????????????? | | ?????????#########?# #????????????????????? | | ?????????# # #????????????????????? | | ?????????# """" # #????????????????????? | | ?????????# ""S"" # #????????????????????? | | ?????????# ] "" "" # #????????????????????? | | ?????????# # #????????????????????? | | ?????????# # ]!@ #????????????????????? | | ??????????! # s]! #????????????????????? | | ???????????? ??#sss]! #????????????????????? | | ##############/######s###########????????????????? | | #????????????????? | | #????????????????? | | #????????????????? | | ?????????????? | | +#############+#####"T##############?????????????? | | #?????????????#""#??????????????????????????? | | !#?????????????####??????????????????????????? | | #???????????????????????????????????????????? | | [! #???????????????????????????????????????????? | | ! #???????????????????????????????????????????? | | #???????????????????????????????????????????? | | #???????????????????????????????????????????? | | #???????????????????????????????????????????? | | #???????????????????????????????????????????? | | ######???????????????????????????????????????????? | | ?????????????????????????????????????????????????? | | ?????????????????????????????????????????????????? | | ?????????????????????????????????????????????????? | | ?????????????????????????????????????????????????? | | ?????????????????????????????????????????????????? | | ?????????????????????????????????????????????????? | +----------------------------------------------------+ Best States ------------- Heat Dissipation 112 Energy Generation 49 Energy Capacity 690 Matter Stores 300 Matter Capacity 300 Sight Range 16 Terrain Scan Density 10 ECM Strength 1 Jamming Range 14 Cloak Strength 2 Power Amplification 40 Additional Mass Support 9 Base Temperature (-) 200 Corruption Block 15 Armor Coverage 150 Resistance: KI 20 Resistance: TH 20 Resistance: EX 20 Resistance: EM 20 Resistance: I 20 Resistance: S 20 Resistance: P 20 Propulsion Shielding 90 Phase Shifting 5 Evasion (%) 75 Targeting Accuracy 8 Salvage Targeting 3 Offensive Hacking 20 Defensive Hacking 10 Item Schematics ----------------- Flak Gun | -9/Recycling | Hacked Lgt. Deuterium Engine | -9/Recycling | Hacked Katana | -9/Recycling | Hacked Railgun | -6/Factory | Hacked Imp. System Guard | -4/Factory | Hacked Robot Schematics ------------------ None Fabricated ------------ Nothing Alien Tech Used ----------------- None Achievements -------------- None Challenges ------------ None Game ------ Seed CoilLongswordRay Manual? 0 Play Time 01:12:09 Cumulative 72.9 hours Start 2024.10.20 @ 10:08:52 End 2024.10.20 @ 11:18:47 Sessions 1 Manual Loads 0 Difficulty Adventurer Special Mode None Game No. 92 Rogue 13 Adventurer 79 Explorer 0 Win Type - Total 0 Types 0/0/0/0/0/0/0/0/0 Lore% 56 Gallery% 59 Achievement% 44 Wizard Run 0 Options --------- Layout 1 ASCII 0 Keyboard 0 Movement Mouse Keybinds 0 Fullscreen 1 Font 24/Smallcaps Map View 50x35 Zoom Use 0% Tactical HUD 0 Map Filters NONE Filters NONE Steam 1 RUN: dd47b719-7708-45ba-91b4-4eac68f7a4b4